[Event "*** SCC Grand Prix: Titled Tuesday Blitz"]
[Site "Chess.com"]
[Date "2020.07.07"]
[Round "7"]
[White "VladaSviridova"]
[Black "queen_iryna"]
[Result "1-0"]
[WhiteElo "2138"]
[BlackElo "2240"]
[TimeControl "180+1"]
[EndTime "11:19:49 PDT"]
[Termination "VladaSviridova won by resignation"]

1. d4 {[%clk 0:03:00.4]} 1... d5 {[%clk 0:02:59.3]} 2. c4 {[%clk 0:03:00.4]}
2... c6 {[%clk 0:02:54.2]} 3. Nf3 {[%clk 0:03:00.2]} 3... Nf6 {[%clk 0:02:53.6]}
4. Nc3 {[%clk 0:03:00]} 4... e6 {[%clk 0:02:53.4]} 5. e3 {[%clk 0:03:00.1]} 5...
Nbd7 {[%clk 0:02:53.4]} 6. Qc2 {[%clk 0:03:00.2]} 6... Bd6 {[%clk 0:02:52.1]} 7.
Bd3 {[%clk 0:03:00.2]} 7... O-O {[%clk 0:02:52.7]} 8. O-O {[%clk 0:02:59.8]}
8... b6 {[%clk 0:02:51.4]} 9. b3 {[%clk 0:02:56.6]} 9... Bb7 {[%clk 0:02:50.8]}
10. Bb2 {[%clk 0:02:56.8]} 10... Rc8 {[%clk 0:02:51.1]} 11. Qe2 {[%clk 0:02:43]}
11... Qe7 {[%clk 0:02:47.8]} 12. Rad1 {[%clk 0:02:30.1]} 12... c5 {[%clk
0:02:45.2]} 13. h3 {[%clk 0:02:17.7]} 13... Bb8 {[%clk 0:02:36]} 14. Rfe1 {[%clk
0:02:12]} 14... e5 {[%clk 0:02:29]} 15. dxe5 {[%clk 0:01:58.2]} 15... Nxe5
{[%clk 0:02:28.7]} 16. Nxe5 {[%clk 0:01:43.2]} 16... Qxe5 {[%clk 0:02:28.4]} 17.
f4 {[%clk 0:01:42.6]} 17... Qe6 {[%clk 0:02:06.1]} 18. cxd5 {[%clk 0:01:33.7]}
18... Nxd5 {[%clk 0:02:05.6]} 19. Nxd5 {[%clk 0:01:33.4]} 19... Bxd5 {[%clk
0:02:06.5]} 20. Bxh7+ {[%clk 0:01:25.4]} 20... Kxh7 {[%clk 0:02:04]} 21. Qh5+
{[%clk 0:01:25.4]} 21... Kg8 {[%clk 0:02:00.8]} 22. Qxd5 {[%clk 0:01:24.9]}
22... Qg6 {[%clk 0:01:49.1]} 23. Qd3 {[%clk 0:01:09.5]} 23... Qg3 {[%clk
0:01:37.1]} 24. Rf1 {[%clk 0:01:00.4]} 24... Bc7 {[%clk 0:01:31]} 25. Rf3 {[%clk
0:00:59]} 25... Qh4 {[%clk 0:01:31.3]} 26. Qc3 {[%clk 0:00:57.1]} 26... f6
{[%clk 0:01:20]} 27. Qc4+ {[%clk 0:00:56.8]} 27... Kh8 {[%clk 0:01:17.1]} 28. f5
{[%clk 0:00:48.1]} 28... Qxc4 {[%clk 0:01:10.7]} 29. bxc4 {[%clk 0:00:47.9]}
29... Rfd8 {[%clk 0:01:11.1]} 30. Rff1 {[%clk 0:00:45.2]} 30... Kg8 {[%clk
0:01:04.9]} 31. Kf2 {[%clk 0:00:44.5]} 31... Kf7 {[%clk 0:01:04.7]} 32. Kf3
{[%clk 0:00:44.6]} 32... Ke7 {[%clk 0:01:02.3]} 33. g4 {[%clk 0:00:42.2]} 33...
Rh8 {[%clk 0:01:01.3]} 34. Kg2 {[%clk 0:00:41.7]} 34... Rhe8 {[%clk 0:01:00]}
35. Rd5 {[%clk 0:00:40.8]} 35... Kf7 {[%clk 0:00:57.9]} 36. Rd3 {[%clk
0:00:38.7]} 36... Re7 {[%clk 0:00:57.3]} 37. Rfd1 {[%clk 0:00:38.5]} 37... Rce8
{[%clk 0:00:57.3]} 38. Kf3 {[%clk 0:00:38]} 38... Rh8 {[%clk 0:00:55.4]} 39. Rh1
{[%clk 0:00:37.9]} 39... Rhe8 {[%clk 0:00:54.6]} 40. h4 {[%clk 0:00:37.6]} 40...
Rh8 {[%clk 0:00:50.8]} 41. h5 {[%clk 0:00:37.8]} 41... a6 {[%clk 0:00:47]} 42.
a4 {[%clk 0:00:36.6]} 42... Ke8 {[%clk 0:00:43.8]} 43. Rhd1 {[%clk 0:00:35.4]}
43... Kf7 {[%clk 0:00:42.4]} 44. Rd7 {[%clk 0:00:34.9]} 44... Re8 {[%clk
0:00:42.8]} 45. Rxe7+ {[%clk 0:00:34.5]} 45... Rxe7 {[%clk 0:00:43.7]} 46. Rd5
{[%clk 0:00:32.8]} 46... Ke8 {[%clk 0:00:43.2]} 47. Bc3 {[%clk 0:00:29.2]} 47...
Rd7 {[%clk 0:00:43.2]} 48. Rxd7 {[%clk 0:00:27.8]} 48... Kxd7 {[%clk 0:00:44.1]}
49. Bxf6 {[%clk 0:00:25.9]} 49... Ke8 {[%clk 0:00:29.4]} 50. Bxg7 {[%clk
0:00:25.6]} 50... Kf7 {[%clk 0:00:30.3]} 51. Bc3 {[%clk 0:00:25.3]} 51... Bd6
{[%clk 0:00:28]} 52. g5 {[%clk 0:00:25.4]} 52... Be7 {[%clk 0:00:27.2]} 53. Kg4
{[%clk 0:00:24.3]} 53... Bd6 {[%clk 0:00:27]} 54. h6 {[%clk 0:00:24.2]} 54...
Kg8 {[%clk 0:00:26.5]} 55. g6 {[%clk 0:00:23.9]} 55... b5 {[%clk 0:00:23.8]} 56.
axb5 {[%clk 0:00:23.4]} 56... axb5 {[%clk 0:00:24.7]} 57. cxb5 {[%clk
0:00:23.4]} 57... c4 {[%clk 0:00:25.2]} 58. h7+ {[%clk 0:00:23.3]} 1-0

[Event "*** SCC Grand Prix: Titled Tuesday Blitz"]
[Site "Chess.com"]
[Date "2020.07.07"]
[Round "7"]
[White "Angel_Hranitel_37"]
[Black "shnitez"]
[Result "0-1"]
[WhiteElo "2379"]
[BlackElo "2511"]
[TimeControl "180+1"]
[EndTime "11:19:50 PDT"]
[Termination "shnitez won by resignation"]

1. d4 {[%clk 0:03:00]} 1... Nf6 {[%clk 0:02:58.8]} 2. Nf3 {[%clk 0:02:59.8]}
2... e6 {[%clk 0:02:58.2]} 3. c4 {[%clk 0:03:00.1]} 3... b6 {[%clk 0:02:57.7]}
4. g3 {[%clk 0:03:00.5]} 4... Bb7 {[%clk 0:02:58.1]} 5. Bg2 {[%clk 0:03:00.6]}
5... Be7 {[%clk 0:02:59]} 6. O-O {[%clk 0:03:00.8]} 6... O-O {[%clk 0:02:59.3]}
7. Nc3 {[%clk 0:03:01.4]} 7... Ne4 {[%clk 0:02:58.4]} 8. Qc2 {[%clk 0:03:01.9]}
8... Nxc3 {[%clk 0:02:57.7]} 9. Qxc3 {[%clk 0:03:02.8]} 9... Bf6 {[%clk
0:02:57.6]} 10. Qc2 {[%clk 0:02:56.3]} 10... g6 {[%clk 0:02:57.5]} 11. b3 {[%clk
0:02:51.1]} 11... d6 {[%clk 0:02:56.2]} 12. Bb2 {[%clk 0:02:51]} 12... Nd7
{[%clk 0:02:56.4]} 13. e4 {[%clk 0:02:50]} 13... Qe7 {[%clk 0:02:37.6]} 14. Rad1
{[%clk 0:02:41.1]} 14... Rac8 {[%clk 0:02:29.2]} 15. Rd2 {[%clk 0:02:24.3]}
15... Bg7 {[%clk 0:02:21.6]} 16. Rfd1 {[%clk 0:02:24]} 16... Rfd8 {[%clk
0:02:12.7]} 17. Qc1 {[%clk 0:02:09.8]} 17... Bh6 {[%clk 0:02:09.8]} 18. d5
{[%clk 0:02:06.8]} 18... e5 {[%clk 0:02:08.5]} 19. Ne1 {[%clk 0:01:59.8]} 19...
Bxd2 {[%clk 0:02:03.4]} 20. Qxd2 {[%clk 0:02:00.7]} 20... c6 {[%clk 0:01:35.3]}
21. dxc6 {[%clk 0:01:16.9]} 21... Rxc6 {[%clk 0:01:34.3]} 22. Nd3 {[%clk
0:01:17.8]} 22... Rcc8 {[%clk 0:01:27.7]} 23. Nb4 {[%clk 0:01:17.9]} 23... Nc5
{[%clk 0:01:27.5]} 24. Nd5 {[%clk 0:01:18.3]} 24... Bxd5 {[%clk 0:01:27.1]} 25.
exd5 {[%clk 0:01:19.2]} 25... f6 {[%clk 0:01:10.7]} 26. Bh3 {[%clk 0:01:16.3]}
26... Rc7 {[%clk 0:01:10.4]} 27. Bc1 {[%clk 0:00:56.7]} 27... Rf8 {[%clk
0:01:03.7]} 28. Qc2 {[%clk 0:00:53]} 28... Qe8 {[%clk 0:01:01.6]} 29. Bh6 {[%clk
0:00:49.6]} 29... Rff7 {[%clk 0:01:00.8]} 30. b4 {[%clk 0:00:49.6]} 30... Qa4
{[%clk 0:00:51.8]} 31. Qxa4 {[%clk 0:00:23.6]} 31... Nxa4 {[%clk 0:00:51.7]} 32.
Rc1 {[%clk 0:00:03.6]} 32... f5 {[%clk 0:00:51.2]} 33. Bg5 {[%clk 0:00:03.1]}
33... Kg7 {[%clk 0:00:49.8]} 34. Rc2 {[%clk 0:00:03.3]} 34... h6 {[%clk
0:00:49.7]} 35. Be3 {[%clk 0:00:03]} 35... Rf8 {[%clk 0:00:49.4]} 36. Bf1 {[%clk
0:00:03.4]} 36... g5 {[%clk 0:00:47.1]} 37. f4 {[%clk 0:00:02.7]} 37... Kf6
{[%clk 0:00:47.2]} 38. fxg5+ {[%clk 0:00:02.9]} 38... hxg5 {[%clk 0:00:47.1]}
39. h4 {[%clk 0:00:03.8]} 39... gxh4 {[%clk 0:00:44.9]} 40. gxh4 {[%clk
0:00:04.7]} 40... f4 {[%clk 0:00:45.6]} 41. Bf2 {[%clk 0:00:05.3]} 41... e4
{[%clk 0:00:38]} 42. Bh3 {[%clk 0:00:05.7]} 42... e3 {[%clk 0:00:37.4]} 43. Be1
{[%clk 0:00:06]} 43... Ke5 {[%clk 0:00:36.3]} 44. c5 {[%clk 0:00:03.7]} 44...
bxc5 {[%clk 0:00:34.9]} 45. bxc5 {[%clk 0:00:04.6]} 45... Rxc5 {[%clk
0:00:35.2]} 46. Rxc5 {[%clk 0:00:04.8]} 46... Nxc5 {[%clk 0:00:34.8]} 47. Bg2
{[%clk 0:00:04.8]} 47... f3 {[%clk 0:00:33.5]} 48. Bc3+ {[%clk 0:00:05.7]} 48...
Ke4 {[%clk 0:00:33.3]} 49. Bh3 {[%clk 0:00:06.3]} 49... Nd3 {[%clk 0:00:30.8]}
50. Kf1 {[%clk 0:00:05.4]} 50... e2+ {[%clk 0:00:30.7]} 51. Kg1 {[%clk
0:00:06.3]} 51... f2+ {[%clk 0:00:31]} 52. Kh2 {[%clk 0:00:06.2]} 52... f1=Q
{[%clk 0:00:30.4]} 53. Bxf1 {[%clk 0:00:07]} 53... exf1=Q {[%clk 0:00:31.1]} 54.
Be1 {[%clk 0:00:07.8]} 0-1

[Event "*** SCC Grand Prix: Titled Tuesday Blitz"]
[Site "Chess.com"]
[Date "2020.07.07"]
[Round "7"]
[White "Stosk"]
[Black "BabyBoss31"]
[Result "1-0"]
[WhiteElo "2370"]
[BlackElo "2212"]
[TimeControl "180+1"]
[EndTime "11:19:50 PDT"]
[Termination "Stosk won by resignation"]

1. e4 {[%clk 0:03:00.9]} 1... e6 {[%clk 0:03:00.4]} 2. d4 {[%clk 0:02:57.6]}
2... d5 {[%clk 0:03:01.3]} 3. Nc3 {[%clk 0:02:58.2]} 3... Nf6 {[%clk 0:03:01.4]}
4. e5 {[%clk 0:02:58.4]} 4... Nfd7 {[%clk 0:03:01.9]} 5. f4 {[%clk 0:02:58.3]}
5... c5 {[%clk 0:03:02.5]} 6. Nce2 {[%clk 0:02:54.2]} 6... Nc6 {[%clk
0:03:01.2]} 7. c3 {[%clk 0:02:52]} 7... a6 {[%clk 0:03:01]} 8. f5 {[%clk
0:02:41.8]} 8... exf5 {[%clk 0:02:31.5]} 9. Nf4 {[%clk 0:02:38.1]} 9... cxd4
{[%clk 0:02:26]} 10. cxd4 {[%clk 0:02:34.4]} 10... Bb4+ {[%clk 0:02:22.9]} 11.
Bd2 {[%clk 0:02:29.8]} 11... Qa5 {[%clk 0:02:20.5]} 12. Nf3 {[%clk 0:02:24.7]}
12... h6 {[%clk 0:02:03.6]} 13. h4 {[%clk 0:02:17]} 13... Nf8 {[%clk 0:01:52.1]}
14. a3 {[%clk 0:02:01.8]} 14... Bxd2+ {[%clk 0:01:50.9]} 15. Qxd2 {[%clk
0:02:02.4]} 15... Qxd2+ {[%clk 0:01:50.7]} 16. Kxd2 {[%clk 0:02:02.9]} 16... Be6
{[%clk 0:01:50.1]} 17. Be2 {[%clk 0:01:54.8]} 17... Rg8 {[%clk 0:01:42.8]} 18.
h5 {[%clk 0:01:47.2]} 18... Ke7 {[%clk 0:01:37.9]} 19. Ke3 {[%clk 0:01:38.1]}
19... Nd7 {[%clk 0:01:37.1]} 20. Rac1 {[%clk 0:01:31.2]} 20... Rac8 {[%clk
0:01:27.4]} 21. Bd3 {[%clk 0:01:14]} 21... Nf8 {[%clk 0:00:53]} 22. Nh4 {[%clk
0:01:11.8]} 22... g6 {[%clk 0:00:52.9]} 23. hxg6 {[%clk 0:01:08.4]} 23... fxg6
{[%clk 0:00:53.8]} 24. g4 {[%clk 0:01:01.9]} 24... g5 {[%clk 0:00:48.9]} 25.
Nxe6 {[%clk 0:00:57.9]} 25... gxh4 {[%clk 0:00:29.1]} 26. Nxf8 {[%clk
0:00:57.2]} 26... f4+ {[%clk 0:00:22.4]} 27. Kxf4 {[%clk 0:00:53.8]} 27...
Rcxf8+ {[%clk 0:00:22.7]} 28. Bf5 {[%clk 0:00:53.5]} 28... Nxd4 {[%clk
0:00:19.8]} 29. Rc7+ {[%clk 0:00:52.8]} 29... Kd8 {[%clk 0:00:19.5]} 30. Rd7+
{[%clk 0:00:52.1]} 30... Ke8 {[%clk 0:00:16.1]} 31. Rxb7 {[%clk 0:00:48.6]}
31... Rg5 {[%clk 0:00:10.4]} 32. Rb8+ {[%clk 0:00:33.5]} 32... Ke7 {[%clk
0:00:10.2]} 33. Rxf8 {[%clk 0:00:33]} 33... Kxf8 {[%clk 0:00:11.1]} 34. Rxh4
{[%clk 0:00:31.9]} 34... Kg7 {[%clk 0:00:11]} 35. Rh1 {[%clk 0:00:26.7]} 35...
Ne2+ {[%clk 0:00:08.1]} 36. Ke3 {[%clk 0:00:23.1]} 36... Ng3 {[%clk 0:00:07.5]}
37. Rc1 {[%clk 0:00:20.1]} 37... Nxf5+ {[%clk 0:00:07.4]} 38. gxf5 {[%clk
0:00:20.4]} 38... Rxf5 {[%clk 0:00:08.3]} 39. Kd4 {[%clk 0:00:20.8]} 39... Rf2
{[%clk 0:00:06.7]} 40. Kxd5 {[%clk 0:00:19.6]} 40... Rxb2 {[%clk 0:00:06.5]} 41.
Rc7+ {[%clk 0:00:19]} 41... Kf8 {[%clk 0:00:06.2]} 42. Ke6 {[%clk 0:00:18.7]}
42... Rb6+ {[%clk 0:00:05.1]} 43. Kf5 {[%clk 0:00:18.7]} 43... a5 {[%clk
0:00:03]} 44. e6 {[%clk 0:00:18.5]} 44... Ke8 {[%clk 0:00:03.4]} 45. Kf6 {[%clk
0:00:18.3]} 45... Rb8 {[%clk 0:00:03.6]} 46. Rh7 {[%clk 0:00:17.5]} 46... Kd8
{[%clk 0:00:04.1]} 47. Rh8+ {[%clk 0:00:17.3]} 47... Kc7 {[%clk 0:00:04.7]} 48.
Rxb8 {[%clk 0:00:17.8]} 48... Kxb8 {[%clk 0:00:05.6]} 1-0

[Event "*** SCC Grand Prix: Titled Tuesday Blitz"]
[Site "Chess.com"]
[Date "2020.07.07"]
[Round "7"]
[White "tamarozi99"]
[Black "kidagent"]
[Result "0-1"]
[WhiteElo "1979"]
[BlackElo "2225"]
[TimeControl "180+1"]
[EndTime "11:19:50 PDT"]
[Termination "kidagent won by checkmate"]

1. e4 {[%clk 0:03:00.9]} 1... c5 {[%clk 0:02:59.2]} 2. Nf3 {[%clk 0:03:00]} 2...
d6 {[%clk 0:02:59.1]} 3. d4 {[%clk 0:02:58.6]} 3... cxd4 {[%clk 0:03:00]} 4.
Nxd4 {[%clk 0:02:59.1]} 4... Nf6 {[%clk 0:02:59.6]} 5. Nc3 {[%clk 0:02:59.4]}
5... a6 {[%clk 0:02:59.2]} 6. Be3 {[%clk 0:02:55.7]} 6... e5 {[%clk 0:02:58.4]}
7. Nb3 {[%clk 0:02:55.7]} 7... Be7 {[%clk 0:02:58.3]} 8. Qd2 {[%clk 0:02:53.9]}
8... Be6 {[%clk 0:02:53.6]} 9. g3 {[%clk 0:02:51.1]} 9... b5 {[%clk 0:02:49.9]}
10. Bg2 {[%clk 0:02:43.4]} 10... O-O {[%clk 0:02:49.1]} 11. O-O-O {[%clk
0:02:41.5]} 11... Nbd7 {[%clk 0:02:44.8]} 12. f4 {[%clk 0:02:40.7]} 12... Rc8
{[%clk 0:02:28.3]} 13. Kb1 {[%clk 0:02:29.8]} 13... b4 {[%clk 0:02:19.3]} 14.
Nd5 {[%clk 0:02:13.5]} 14... Nxd5 {[%clk 0:02:16]} 15. exd5 {[%clk 0:02:13]}
15... Bf5 {[%clk 0:02:15.6]} 16. Rc1 {[%clk 0:02:09.7]} 16... a5 {[%clk
0:02:13.5]} 17. fxe5 {[%clk 0:02:02.3]} 17... Nxe5 {[%clk 0:02:10.6]} 18. Bf1
{[%clk 0:01:36.5]} 18... Bf6 {[%clk 0:01:52.7]} 19. Nd4 {[%clk 0:01:22.3]} 19...
Be4 {[%clk 0:01:49.9]} 20. Rg1 {[%clk 0:01:14.8]} 20... Bxd5 {[%clk 0:01:39.3]}
21. Nb5 {[%clk 0:00:54.6]} 21... Be6 {[%clk 0:01:11.4]} 22. Qxd6 {[%clk
0:00:52.2]} 22... Nc4 {[%clk 0:00:52.4]} 23. Qxd8 {[%clk 0:00:44.6]} 23... Rfxd8
{[%clk 0:00:50.4]} 24. Bxc4 {[%clk 0:00:28.3]} 24... Bxc4 {[%clk 0:00:51.3]} 25.
a4 {[%clk 0:00:18.6]} 25... bxa3 {[%clk 0:00:42]} 26. Nxa3 {[%clk 0:00:18.2]}
26... Be6 {[%clk 0:00:42.2]} 27. c3 {[%clk 0:00:15.2]} 27... Rb8 {[%clk
0:00:40.5]} 28. Ka1 {[%clk 0:00:09.7]} 28... Rb3 {[%clk 0:00:35.8]} 29. Rgd1
{[%clk 0:00:09.1]} 29... Rdb8 {[%clk 0:00:34.7]} 30. Rd2 {[%clk 0:00:06.8]}
30... h6 {[%clk 0:00:24.3]} 31. Bd4 {[%clk 0:00:06.8]} 31... Bg5 {[%clk
0:00:23.3]} 32. Rdc2 {[%clk 0:00:06.5]} 32... Bxc1 {[%clk 0:00:21.9]} 33. Rxc1
{[%clk 0:00:07.4]} 33... R3b7 {[%clk 0:00:19.2]} 34. Rc2 {[%clk 0:00:07]} 34...
Rb3 {[%clk 0:00:18.2]} 35. Rf2 {[%clk 0:00:07]} 35... R3b7 {[%clk 0:00:17.2]}
36. h4 {[%clk 0:00:06.9]} 36... Rd8 {[%clk 0:00:16.5]} 37. Nc2 {[%clk
0:00:06.2]} 37... Bb3 {[%clk 0:00:15]} 38. Ne3 {[%clk 0:00:06]} 38... Rbd7
{[%clk 0:00:13.6]} 39. Nf5 {[%clk 0:00:05.6]} 39... f6 {[%clk 0:00:11.2]} 40. h5
{[%clk 0:00:05]} 40... Be6 {[%clk 0:00:10.9]} 41. Nh4 {[%clk 0:00:04.8]} 41...
Bf7 {[%clk 0:00:10.6]} 42. g4 {[%clk 0:00:03.9]} 42... Rxd4 {[%clk 0:00:09]} 43.
cxd4 {[%clk 0:00:03.7]} 43... Rxd4 {[%clk 0:00:09.9]} 44. Rg2 {[%clk 0:00:03.3]}
44... Be6 {[%clk 0:00:09.4]} 45. Ng6 {[%clk 0:00:01.5]} 45... Rd1# {[%clk
0:00:09]} 0-1

[Event "*** SCC Grand Prix: Titled Tuesday Blitz"]
[Site "Chess.com"]
[Date "2020.07.07"]
[Round "7"]
[White "tsvet2005"]
[Black "albi1999"]
[Result "1-0"]
[WhiteElo "2639"]
[BlackElo "2479"]
[TimeControl "180+1"]
[EndTime "11:19:51 PDT"]
[Termination "tsvet2005 won by resignation"]

1. d4 {[%clk 0:03:00.9]} 1... d5 {[%clk 0:02:48.6]} 2. c4 {[%clk 0:03:01.5]}
2... e6 {[%clk 0:02:46.7]} 3. Nc3 {[%clk 0:03:02]} 3... Nf6 {[%clk 0:02:45.3]}
4. cxd5 {[%clk 0:03:02.3]} 4... Nxd5 {[%clk 0:02:46.2]} 5. e4 {[%clk 0:03:02.3]}
5... Nxc3 {[%clk 0:02:44.9]} 6. bxc3 {[%clk 0:03:03.2]} 6... c5 {[%clk
0:02:45.6]} 7. Rb1 {[%clk 0:03:03.2]} 7... Be7 {[%clk 0:02:44.7]} 8. Nf3 {[%clk
0:03:02.7]} 8... O-O {[%clk 0:02:45]} 9. Be2 {[%clk 0:03:02]} 9... b6 {[%clk
0:02:44.6]} 10. d5 {[%clk 0:02:53.7]} 10... exd5 {[%clk 0:02:41.8]} 11. exd5
{[%clk 0:02:54.6]} 11... Bf6 {[%clk 0:02:41]} 12. c4 {[%clk 0:02:50.5]} 12...
Bf5 {[%clk 0:02:40.7]} 13. Rb3 {[%clk 0:02:49.9]} 13... Na6 {[%clk 0:02:36.9]}
14. a3 {[%clk 0:02:39.2]} 14... Nc7 {[%clk 0:02:29.4]} 15. O-O {[%clk
0:02:33.9]} 15... Ne8 {[%clk 0:02:29.8]} 16. Bf4 {[%clk 0:02:00.6]} 16... Nd6
{[%clk 0:02:29.5]} 17. Bd3 {[%clk 0:02:00.6]} 17... Bxd3 {[%clk 0:02:28.4]} 18.
Qxd3 {[%clk 0:02:01.5]} 18... Re8 {[%clk 0:02:28.6]} 19. Rbb1 {[%clk 0:02:00.5]}
19... Qd7 {[%clk 0:02:22.8]} 20. Rbe1 {[%clk 0:01:58.1]} 20... Qf5 {[%clk
0:02:15.4]} 21. Qxf5 {[%clk 0:01:27.7]} 21... Nxf5 {[%clk 0:02:16.3]} 22. g4
{[%clk 0:01:16.5]} 22... Nd4 {[%clk 0:02:15.7]} 23. Kg2 {[%clk 0:01:15.8]} 23...
Nc2 {[%clk 0:02:12.6]} 24. Rxe8+ {[%clk 0:01:13.6]} 24... Rxe8 {[%clk
0:02:13.5]} 25. g5 {[%clk 0:01:14.1]} 25... Bb2 {[%clk 0:02:06.5]} 26. a4 {[%clk
0:01:06]} 26... Na3 {[%clk 0:02:04.1]} 27. Nd2 {[%clk 0:01:04.2]} 27... Bc3
{[%clk 0:02:01.8]} 28. Rc1 {[%clk 0:00:43]} 28... Bxd2 {[%clk 0:01:43.4]} 29.
Bxd2 {[%clk 0:00:43.9]} 29... Re4 {[%clk 0:01:43.8]} 30. d6 {[%clk 0:00:41.4]}
30... Kf8 {[%clk 0:01:38]} 31. Kf3 {[%clk 0:00:25.3]} 31... Rxc4 {[%clk
0:01:16.3]} 32. Re1 {[%clk 0:00:23.5]} 32... Rd4 {[%clk 0:00:58.4]} 33. Bf4
{[%clk 0:00:23.3]} 33... Nc4 {[%clk 0:00:51.9]} 34. Re7 {[%clk 0:00:23.6]} 34...
Nxd6 {[%clk 0:00:52.1]} 35. Rxa7 {[%clk 0:00:24.2]} 35... Nc4 {[%clk 0:00:46.1]}
36. Rb7 {[%clk 0:00:19.5]} 36... Rd3+ {[%clk 0:00:40.4]} 37. Ke2 {[%clk
0:00:18.6]} 37... Ra3 {[%clk 0:00:37.3]} 38. Ra7 {[%clk 0:00:16.7]} 38... Nb2
{[%clk 0:00:28.1]} 39. Bd6+ {[%clk 0:00:12.7]} 39... Ke8 {[%clk 0:00:28.5]} 40.
Re7+ {[%clk 0:00:11.4]} 40... Kd8 {[%clk 0:00:28.8]} 41. Rxf7 {[%clk 0:00:11.5]}
41... Nc4 {[%clk 0:00:27.6]} 42. Bc7+ {[%clk 0:00:09.1]} 42... Kc8 {[%clk
0:00:27.3]} 43. Rxg7 {[%clk 0:00:09.6]} 43... Rxa4 {[%clk 0:00:25.4]} 44. Bg3
{[%clk 0:00:09.1]} 44... Ra3 {[%clk 0:00:16.6]} 45. Rxh7 {[%clk 0:00:08.6]}
45... Kd8 {[%clk 0:00:12.9]} 46. g6 {[%clk 0:00:08.4]} 46... Ke8 {[%clk
0:00:12.2]} 47. Rh8+ {[%clk 0:00:08.9]} 47... Ke7 {[%clk 0:00:12.3]} 48. g7
{[%clk 0:00:09.8]} 1-0

[Event "*** SCC Grand Prix: Titled Tuesday Blitz"]
[Site "Chess.com"]
[Date "2020.07.07"]
[Round "7"]
[White "turayev_shahruh17"]
[Black "GM4life"]
[Result "0-1"]
[WhiteElo "2470"]
[BlackElo "2373"]
[TimeControl "180+1"]
[EndTime "11:19:53 PDT"]
[Termination "GM4life won by checkmate"]

1. d4 {[%clk 0:02:59.7]} 1... Nf6 {[%clk 0:02:58.9]} 2. c4 {[%clk 0:02:59.9]}
2... g6 {[%clk 0:02:59.3]} 3. g3 {[%clk 0:03:00.2]} 3... Bg7 {[%clk 0:02:59.7]}
4. Bg2 {[%clk 0:03:01.1]} 4... O-O {[%clk 0:03:00.4]} 5. Nc3 {[%clk 0:03:02]}
5... c5 {[%clk 0:03:00.3]} 6. d5 {[%clk 0:03:01.8]} 6... d6 {[%clk 0:02:59.8]}
7. Nf3 {[%clk 0:03:02.1]} 7... a6 {[%clk 0:03:00.1]} 8. a4 {[%clk 0:03:00.8]}
8... e6 {[%clk 0:02:57.9]} 9. O-O {[%clk 0:03:00.7]} 9... Re8 {[%clk 0:02:58.4]}
10. Re1 {[%clk 0:02:48]} 10... Qc7 {[%clk 0:02:49.6]} 11. Bg5 {[%clk 0:02:43.4]}
11... exd5 {[%clk 0:02:46.7]} 12. Bxf6 {[%clk 0:02:40.6]} 12... Bxf6 {[%clk
0:02:46.5]} 13. Nxd5 {[%clk 0:02:41]} 13... Qd8 {[%clk 0:02:46.9]} 14. Nxf6+
{[%clk 0:02:39.8]} 14... Qxf6 {[%clk 0:02:47]} 15. Qd2 {[%clk 0:02:38.3]} 15...
Nc6 {[%clk 0:02:41.7]} 16. Rad1 {[%clk 0:02:36.9]} 16... Rd8 {[%clk 0:02:23.2]}
17. Ng5 {[%clk 0:02:29.9]} 17... Nd4 {[%clk 0:02:16.3]} 18. e3 {[%clk
0:02:30.3]} 18... Nc6 {[%clk 0:01:27.1]} 19. Ne4 {[%clk 0:02:29.4]} 19... Qe5
{[%clk 0:01:23.4]} 20. f4 {[%clk 0:02:18.5]} 20... Qe7 {[%clk 0:01:22.5]} 21.
Nc3 {[%clk 0:02:04.1]} 21... Bg4 {[%clk 0:01:21.9]} 22. Nd5 {[%clk 0:02:04.3]}
22... Qe6 {[%clk 0:01:08.9]} 23. Nc7 {[%clk 0:01:36.9]} 23... Qf6 {[%clk
0:01:04.6]} 24. Nxa8 {[%clk 0:01:25.9]} 24... Bxd1 {[%clk 0:01:04.2]} 25. Nc7
{[%clk 0:01:21.5]} 25... Bxa4 {[%clk 0:00:56.9]} 26. Nd5 {[%clk 0:01:20.7]}
26... Qg7 {[%clk 0:00:54.1]} 27. g4 {[%clk 0:01:10.8]} 27... Bb3 {[%clk
0:00:47.3]} 28. Bf1 {[%clk 0:01:06.9]} 28... Nb4 {[%clk 0:00:40.4]} 29. Nc3
{[%clk 0:00:49.1]} 29... Qf6 {[%clk 0:00:36.4]} 30. g5 {[%clk 0:00:48.8]} 30...
Qe6 {[%clk 0:00:35.4]} 31. Qe2 {[%clk 0:00:31.8]} 31... Nc2 {[%clk 0:00:33.8]}
32. Rc1 {[%clk 0:00:26.8]} 32... Qxe3+ {[%clk 0:00:32.3]} 33. Qxe3 {[%clk
0:00:27.3]} 33... Nxe3 {[%clk 0:00:33]} 34. Kf2 {[%clk 0:00:26.5]} 34... Nxc4
{[%clk 0:00:30.4]} 35. Nd5 {[%clk 0:00:27]} 35... Nd2 {[%clk 0:00:27.7]} 36.
Nf6+ {[%clk 0:00:26.7]} 36... Kg7 {[%clk 0:00:28]} 37. Bg2 {[%clk 0:00:27.2]}
37... b5 {[%clk 0:00:23.4]} 38. Ke3 {[%clk 0:00:26.9]} 38... Nc4+ {[%clk
0:00:23]} 39. Kd3 {[%clk 0:00:27.4]} 39... Nb6 {[%clk 0:00:16.2]} 40. Ra1 {[%clk
0:00:25.3]} 40... Na4 {[%clk 0:00:15.6]} 41. Bb7 {[%clk 0:00:22.9]} 41... c4+
{[%clk 0:00:14.7]} 42. Kd2 {[%clk 0:00:22]} 42... Nc5 {[%clk 0:00:14.9]} 43. Bd5
{[%clk 0:00:21]} 43... h6 {[%clk 0:00:14.1]} 44. h4 {[%clk 0:00:19.4]} 44...
hxg5 {[%clk 0:00:15]} 45. hxg5 {[%clk 0:00:19.9]} 45... Rh8 {[%clk 0:00:15.9]}
46. Kc3 {[%clk 0:00:20.3]} 46... Rh3+ {[%clk 0:00:15.9]} 47. Kb4 {[%clk
0:00:20.6]} 47... Rh2 {[%clk 0:00:16.3]} 48. Ka3 {[%clk 0:00:18.6]} 48... a5
{[%clk 0:00:15.8]} 49. Bxc4 {[%clk 0:00:13.2]} 49... b4# {[%clk 0:00:15.4]} 0-1